Workbook

Sheet Worksheet
D1: =CONCATENATE("Complete the table to show the effective rates of interest and the multipliers needed to calculate them. Round answers to 3 significant figures where necessary.",IF($B$6=2," Assume there are 365 days in a year (i.e. ignore leap years)","")) -> Complete the table to show the effective rates of interest and the multipliers needed to calculate them. Round answers to 3 significant figures where necessary.
A2: Variables | C2: which column to show | E2: Effective ANNUAL Rate of Interest | F2: Multiplier to calculate ANNUAL interest | G2: Multiplier to calculate balance at end of one YEAR | H2: =CONCATENATE("Multiplier to calculate balance at end of one ",CHOOSE($B$6,"MONTH","DAY","QUARTER")) -> Multiplier to calculate balance at end of one MONTH | I2: =CONCATENATE("Multiplier to calculate ",CHOOSE($B$6,"MONTHLY ","DAILY ","QUARTERLY "),"interest") -> Multiplier to calculate MONTHLY interest | J2: =CONCATENATE("Effective ",CHOOSE($B$6,"MONTHLY ","DAILY ","QUARTERLY "),"Rate of Interest") -> Effective MONTHLY Rate of Interest
A3: SHOW ANSWERS | B3: FALSE | C3: 1 | D3: 1 | E3: 0.445 | F3: 0.445 | G3: 1.445 | H3: 1.03115 | I3: 0.03115 | J3: 3.12
A4: Number of questions (minimum 5, maximum 14) | B4: 14 | C4: 1 | D4: 2 | E4: 0.545 | F4: 0.545 | G4: 1.545 | H4: 1.03692 | I4: 0.03692 | J4: 3.69
A5: Time period for right-hand columns | C5: 1 | D5: 3 | E5: 0.738 | F5: 0.738 | G5: 1.738 | H5: 1.04714 | I5: 0.04714 | J5: 4.71
A6: Month | B6: 1 | C6: 1 | D6: 4 | E6: 0.131 | F6: 0.131 | G6: 1.131 | H6: 1.01031 | I6: 0.01031 | J6: 1.03
A7: Day | C7: 6 | D7: 5 | E7: 0.345 | F7: 0.34489 | G7: 1.34489 | H7: 1.025 | I7: 0.025 | J7: 0.025
A8: Quarter | C8: 6 | D8: 6 | E8: 2.31 | F8: 2.31396 | G8: 3.31396 | H8: 1.105 | I8: 0.105 | J8: 0.105
C9: 6 | D9: 7 | E9: 0.361 | F9: 0.36072 | G9: 1.36072 | H9: 1.026 | I9: 0.026 | J9: 0.026
C10: 6 | D10: 8 | E10: 0.314 | F10: 0.31373 | G10: 1.31373 | H10: 1.023 | I10: 0.023 | J10: 0.023
C11: 4 | D11: 9 | E11: 0.196 | F11: 0.19562 | G11: 1.19562 | H11: 1.015 | I11: 0.015 | J11: 0.015
C12: 2 | D12: 10 | E12: 0.334 | F12: 0.334 | G12: 1.334 | H12: 1.02431 | I12: 0.02431 | J12: 2.43
C13: 3 | D13: 11 | E13: 0.231 | F13: 0.231 | G13: 1.231 | H13: 1.01747 | I13: 0.01747 | J13: 1.75
C14: 5 | D14: 12 | E14: 0.127 | F14: 0.12683 | G14: 1.12683 | H14: 1.01 | I14: 0.01 | J14: 0.01
C15: 3 | D15: 13 | E15: 0.17 | F15: 0.17 | G15: 1.17 | H15: 1.01317 | I15: 0.01317 | J15: 1.32
C16: 4 | D16: 14 | E16: 0.154 | F16: 0.15389 | G16: 1.15389 | H16: 1.012 | I16: 0.012 | J16: 0.012

Sheet SYSTEM FORMULAE
A2: 1 | B2: =IF(Worksheet!$C3<4,RANDBETWEEN(100,RANDBETWEEN(400,995))/1000,ROUND(C2,3-(1+INT(LOG10(ABS(C2)))))) -> 0.677 | C2: =IF(Worksheet!$C3<4,ROUND(B2/1,4),ROUND(D2-1,5)) -> 0.677 | D2: =IF(Worksheet!$C3<4,ROUND(C2+1,4),ROUND(E2^CHOOSE(Worksheet!$B$6,12,365,4),5)) -> 1.677 | E2: =IF(Worksheet!$C3<4,ROUND(D2^(1/CHOOSE(Worksheet!$B$6,12,365,4)),5),ROUND(F2+1,5)) -> 1.04403 | F2: =IF(Worksheet!$C3<4,ROUND(E2-1,5),ROUND(G2/1,5)) -> 0.04403 | G2: =IF(Worksheet!$C3<4,ROUND(F2,3-(1+INT(LOG10(ABS(F2))))),RANDBETWEEN(CHOOSE(Worksheet!$B$6,10,1,100),CHOOSE(Worksheet!$B$6,120,50,400))/100000)*100 -> 4.4 | J2: 1
A3: 2 | B3: =IF(Worksheet!$C4<4,RANDBETWEEN(100,RANDBETWEEN(400,995))/1000,ROUND(C3,3-(1+INT(LOG10(ABS(C3)))))) -> 0.113 | C3: =IF(Worksheet!$C4<4,ROUND(B3/1,4),ROUND(D3-1,5)) -> 0.113 | D3: =IF(Worksheet!$C4<4,ROUND(C3+1,4),ROUND(E3^CHOOSE(Worksheet!$B$6,12,365,4),5)) -> 1.113 | E3: =IF(Worksheet!$C4<4,ROUND(D3^(1/CHOOSE(Worksheet!$B$6,12,365,4)),5),ROUND(F3+1,5)) -> 1.00896 | F3: =IF(Worksheet!$C4<4,ROUND(E3-1,5),ROUND(G3/1,5)) -> 0.00896 | G3: =IF(Worksheet!$C4<4,ROUND(F3,3-(1+INT(LOG10(ABS(F3))))),RANDBETWEEN(CHOOSE(Worksheet!$B$6,10,1,100),CHOOSE(Worksheet!$B$6,120,50,400))/100000)*100 -> 0.896 | J3: 2
A4: 3 | B4: =IF(Worksheet!$C5<4,RANDBETWEEN(100,RANDBETWEEN(400,995))/1000,ROUND(C4,3-(1+INT(LOG10(ABS(C4)))))) -> 0.17 | C4: =IF(Worksheet!$C5<4,ROUND(B4/1,4),ROUND(D4-1,5)) -> 0.17 | D4: =IF(Worksheet!$C5<4,ROUND(C4+1,4),ROUND(E4^CHOOSE(Worksheet!$B$6,12,365,4),5)) -> 1.17 | E4: =IF(Worksheet!$C5<4,ROUND(D4^(1/CHOOSE(Worksheet!$B$6,12,365,4)),5),ROUND(F4+1,5)) -> 1.01317 | F4: =IF(Worksheet!$C5<4,ROUND(E4-1,5),ROUND(G4/1,5)) -> 0.01317 | G4: =IF(Worksheet!$C5<4,ROUND(F4,3-(1+INT(LOG10(ABS(F4))))),RANDBETWEEN(CHOOSE(Worksheet!$B$6,10,1,100),CHOOSE(Worksheet!$B$6,120,50,400))/100000)*100 -> 1.32 | J4: 3
A5: 4 | B5: =IF(Worksheet!$C6<4,RANDBETWEEN(100,RANDBETWEEN(400,995))/1000,ROUND(C5,3-(1+INT(LOG10(ABS(C5)))))) -> 0.435 | C5: =IF(Worksheet!$C6<4,ROUND(B5/1,4),ROUND(D5-1,5)) -> 0.435 | D5: =IF(Worksheet!$C6<4,ROUND(C5+1,4),ROUND(E5^CHOOSE(Worksheet!$B$6,12,365,4),5)) -> 1.435 | E5: =IF(Worksheet!$C6<4,ROUND(D5^(1/CHOOSE(Worksheet!$B$6,12,365,4)),5),ROUND(F5+1,5)) -> 1.03055 | F5: =IF(Worksheet!$C6<4,ROUND(E5-1,5),ROUND(G5/1,5)) -> 0.03055 | G5: =IF(Worksheet!$C6<4,ROUND(F5,3-(1+INT(LOG10(ABS(F5))))),RANDBETWEEN(CHOOSE(Worksheet!$B$6,10,1,100),CHOOSE(Worksheet!$B$6,120,50,400))/100000)*100 -> 3.06 | J5: 4
A6: 5 | B6: =IF(Worksheet!$C7<4,RANDBETWEEN(100,RANDBETWEEN(400,995))/1000,ROUND(C6,3-(1+INT(LOG10(ABS(C6)))))) -> 0.459 | C6: =IF(Worksheet!$C7<4,ROUND(B6/1,4),ROUND(D6-1,5)) -> 0.45934 | D6: =IF(Worksheet!$C7<4,ROUND(C6+1,4),ROUND(E6^CHOOSE(Worksheet!$B$6,12,365,4),5)) -> 1.45934 | E6: =IF(Worksheet!$C7<4,ROUND(D6^(1/CHOOSE(Worksheet!$B$6,12,365,4)),5),ROUND(F6+1,5)) -> 1.032 | F6: =IF(Worksheet!$C7<4,ROUND(E6-1,5),ROUND(G6/1,5)) -> 0.032 | G6: =IF(Worksheet!$C7<4,ROUND(F6,3-(1+INT(LOG10(ABS(F6))))),RANDBETWEEN(CHOOSE(Worksheet!$B$6,10,1,100),CHOOSE(Worksheet!$B$6,120,50,400))/100000)*100 -> 0.032 | J6: 5
A7: 6 | B7: =IF(Worksheet!$C8<4,RANDBETWEEN(100,RANDBETWEEN(400,995))/1000,ROUND(C7,3-(1+INT(LOG10(ABS(C7)))))) -> 2.65 | C7: =IF(Worksheet!$C8<4,ROUND(B7/1,4),ROUND(D7-1,5)) -> 2.65277 | D7: =IF(Worksheet!$C8<4,ROUND(C7+1,4),ROUND(E7^CHOOSE(Worksheet!$B$6,12,365,4),5)) -> 3.65277 | E7: =IF(Worksheet!$C8<4,ROUND(D7^(1/CHOOSE(Worksheet!$B$6,12,365,4)),5),ROUND(F7+1,5)) -> 1.114 | F7: =IF(Worksheet!$C8<4,ROUND(E7-1,5),ROUND(G7/1,5)) -> 0.114 | G7: =IF(Worksheet!$C8<4,ROUND(F7,3-(1+INT(LOG10(ABS(F7))))),RANDBETWEEN(CHOOSE(Worksheet!$B$6,10,1,100),CHOOSE(Worksheet!$B$6,120,50,400))/100000)*100 -> 0.114 | J7: 6
A8: 7 | B8: =IF(Worksheet!$C9<4,RANDBETWEEN(100,RANDBETWEEN(400,995))/1000,ROUND(C8,3-(1+INT(LOG10(ABS(C8)))))) -> 1.49 | C8: =IF(Worksheet!$C9<4,ROUND(B8/1,4),ROUND(D8-1,5)) -> 1.49033 | D8: =IF(Worksheet!$C9<4,ROUND(C8+1,4),ROUND(E8^CHOOSE(Worksheet!$B$6,12,365,4),5)) -> 2.49033 | E8: =IF(Worksheet!$C9<4,ROUND(D8^(1/CHOOSE(Worksheet!$B$6,12,365,4)),5),ROUND(F8+1,5)) -> 1.079 | F8: =IF(Worksheet!$C9<4,ROUND(E8-1,5),ROUND(G8/1,5)) -> 0.079 | G8: =IF(Worksheet!$C9<4,ROUND(F8,3-(1+INT(LOG10(ABS(F8))))),RANDBETWEEN(CHOOSE(Worksheet!$B$6,10,1,100),CHOOSE(Worksheet!$B$6,120,50,400))/100000)*100 -> 0.079
A9: 8 | B9: =IF(Worksheet!$C10<4,RANDBETWEEN(100,RANDBETWEEN(400,995))/1000,ROUND(C9,3-(1+INT(LOG10(ABS(C9)))))) -> 1.01 | C9: =IF(Worksheet!$C10<4,ROUND(B9/1,4),ROUND(D9-1,5)) -> 1.0122 | D9: =IF(Worksheet!$C10<4,ROUND(C9+1,4),ROUND(E9^CHOOSE(Worksheet!$B$6,12,365,4),5)) -> 2.0122 | E9: =IF(Worksheet!$C10<4,ROUND(D9^(1/CHOOSE(Worksheet!$B$6,12,365,4)),5),ROUND(F9+1,5)) -> 1.06 | F9: =IF(Worksheet!$C10<4,ROUND(E9-1,5),ROUND(G9/1,5)) -> 0.06 | G9: =IF(Worksheet!$C10<4,ROUND(F9,3-(1+INT(LOG10(ABS(F9))))),RANDBETWEEN(CHOOSE(Worksheet!$B$6,10,1,100),CHOOSE(Worksheet!$B$6,120,50,400))/100000)*100 -> 0.06
A10: 9 | B10: =IF(Worksheet!$C11<4,RANDBETWEEN(100,RANDBETWEEN(400,995))/1000,ROUND(C10,3-(1+INT(LOG10(ABS(C10)))))) -> 2.61 | C10: =IF(Worksheet!$C11<4,ROUND(B10/1,4),ROUND(D10-1,5)) -> 2.61362 | D10: =IF(Worksheet!$C11<4,ROUND(C10+1,4),ROUND(E10^CHOOSE(Worksheet!$B$6,12,365,4),5)) -> 3.61362 | E10: =IF(Worksheet!$C11<4,ROUND(D10^(1/CHOOSE(Worksheet!$B$6,12,365,4)),5),ROUND(F10+1,5)) -> 1.113 | F10: =IF(Worksheet!$C11<4,ROUND(E10-1,5),ROUND(G10/1,5)) -> 0.113 | G10: =IF(Worksheet!$C11<4,ROUND(F10,3-(1+INT(LOG10(ABS(F10))))),RANDBETWEEN(CHOOSE(Worksheet!$B$6,10,1,100),CHOOSE(Worksheet!$B$6,120,50,400))/100000)*100 -> 0.113
A11: 10 | B11: =IF(Worksheet!$C12<4,RANDBETWEEN(100,RANDBETWEEN(400,995))/1000,ROUND(C11,3-(1+INT(LOG10(ABS(C11)))))) -> 0.277 | C11: =IF(Worksheet!$C12<4,ROUND(B11/1,4),ROUND(D11-1,5)) -> 0.277 | D11: =IF(Worksheet!$C12<4,ROUND(C11+1,4),ROUND(E11^CHOOSE(Worksheet!$B$6,12,365,4),5)) -> 1.277 | E11: =IF(Worksheet!$C12<4,ROUND(D11^(1/CHOOSE(Worksheet!$B$6,12,365,4)),5),ROUND(F11+1,5)) -> 1.02059 | F11: =IF(Worksheet!$C12<4,ROUND(E11-1,5),ROUND(G11/1,5)) -> 0.02059 | G11: =IF(Worksheet!$C12<4,ROUND(F11,3-(1+INT(LOG10(ABS(F11))))),RANDBETWEEN(CHOOSE(Worksheet!$B$6,10,1,100),CHOOSE(Worksheet!$B$6,120,50,400))/100000)*100 -> 2.06
A12: 11 | B12: =IF(Worksheet!$C13<4,RANDBETWEEN(100,RANDBETWEEN(400,995))/1000,ROUND(C12,3-(1+INT(LOG10(ABS(C12)))))) -> 0.416 | C12: =IF(Worksheet!$C13<4,ROUND(B12/1,4),ROUND(D12-1,5)) -> 0.416 | D12: =IF(Worksheet!$C13<4,ROUND(C12+1,4),ROUND(E12^CHOOSE(Worksheet!$B$6,12,365,4),5)) -> 1.416 | E12: =IF(Worksheet!$C13<4,ROUND(D12^(1/CHOOSE(Worksheet!$B$6,12,365,4)),5),ROUND(F12+1,5)) -> 1.02941 | F12: =IF(Worksheet!$C13<4,ROUND(E12-1,5),ROUND(G12/1,5)) -> 0.02941 | G12: =IF(Worksheet!$C13<4,ROUND(F12,3-(1+INT(LOG10(ABS(F12))))),RANDBETWEEN(CHOOSE(Worksheet!$B$6,10,1,100),CHOOSE(Worksheet!$B$6,120,50,400))/100000)*100 -> 2.94
A13: 12 | B13: =IF(Worksheet!$C14<4,RANDBETWEEN(100,RANDBETWEEN(400,995))/1000,ROUND(C13,3-(1+INT(LOG10(ABS(C13)))))) -> 2.14 | C13: =IF(Worksheet!$C14<4,ROUND(B13/1,4),ROUND(D13-1,5)) -> 2.13843 | D13: =IF(Worksheet!$C14<4,ROUND(C13+1,4),ROUND(E13^CHOOSE(Worksheet!$B$6,12,365,4),5)) -> 3.13843 | E13: =IF(Worksheet!$C14<4,ROUND(D13^(1/CHOOSE(Worksheet!$B$6,12,365,4)),5),ROUND(F13+1,5)) -> 1.1 | F13: =IF(Worksheet!$C14<4,ROUND(E13-1,5),ROUND(G13/1,5)) -> 0.1 | G13: =IF(Worksheet!$C14<4,ROUND(F13,3-(1+INT(LOG10(ABS(F13))))),RANDBETWEEN(CHOOSE(Worksheet!$B$6,10,1,100),CHOOSE(Worksheet!$B$6,120,50,400))/100000)*100 -> 0.1
A14: 13 | B14: =IF(Worksheet!$C15<4,RANDBETWEEN(100,RANDBETWEEN(400,995))/1000,ROUND(C14,3-(1+INT(LOG10(ABS(C14)))))) -> 0.251 | C14: =IF(Worksheet!$C15<4,ROUND(B14/1,4),ROUND(D14-1,5)) -> 0.251 | D14: =IF(Worksheet!$C15<4,ROUND(C14+1,4),ROUND(E14^CHOOSE(Worksheet!$B$6,12,365,4),5)) -> 1.251 | E14: =IF(Worksheet!$C15<4,ROUND(D14^(1/CHOOSE(Worksheet!$B$6,12,365,4)),5),ROUND(F14+1,5)) -> 1.01884 | F14: =IF(Worksheet!$C15<4,ROUND(E14-1,5),ROUND(G14/1,5)) -> 0.01884 | G14: =IF(Worksheet!$C15<4,ROUND(F14,3-(1+INT(LOG10(ABS(F14))))),RANDBETWEEN(CHOOSE(Worksheet!$B$6,10,1,100),CHOOSE(Worksheet!$B$6,120,50,400))/100000)*100 -> 1.88
A15: 14 | B15: =IF(Worksheet!$C16<4,RANDBETWEEN(100,RANDBETWEEN(400,995))/1000,ROUND(C15,3-(1+INT(LOG10(ABS(C15)))))) -> 0.796 | C15: =IF(Worksheet!$C16<4,ROUND(B15/1,4),ROUND(D15-1,5)) -> 0.79586 | D15: =IF(Worksheet!$C16<4,ROUND(C15+1,4),ROUND(E15^CHOOSE(Worksheet!$B$6,12,365,4),5)) -> 1.79586 | E15: =IF(Worksheet!$C16<4,ROUND(D15^(1/CHOOSE(Worksheet!$B$6,12,365,4)),5),ROUND(F15+1,5)) -> 1.05 | F15: =IF(Worksheet!$C16<4,ROUND(E15-1,5),ROUND(G15/1,5)) -> 0.05 | G15: =IF(Worksheet!$C16<4,ROUND(F15,3-(1+INT(LOG10(ABS(F15))))),RANDBETWEEN(CHOOSE(Worksheet!$B$6,10,1,100),CHOOSE(Worksheet!$B$6,120,50,400))/100000)*100 -> 0.05
A16: =IF(ROW()<=Worksheet!$B$4/2,ROW(),"") ->  | F16: =IF(ROW()<=Worksheet!$B$4/2,F15+1,"") -> 
A17: =IF(ROW()<=Worksheet!$B$4/2,ROW(),"") ->  | F17: =IF(ROW()<=Worksheet!$B$4/2,F16+1,"") -> 
A18: =IF(ROW()<=Worksheet!$B$4/2,ROW(),"") ->  | F18: =IF(ROW()<=Worksheet!$B$4/2,F17+1,"") -> 
A19: =IF(ROW()<=Worksheet!$B$4/2,ROW(),"") ->  | F19: =IF(ROW()<=Worksheet!$B$4/2,F18+1,"") -> 
A20: =IF(ROW()<=Worksheet!$B$4/2,ROW(),"") ->  | F20: =IF(ROW()<=Worksheet!$B$4/2,F19+1,"") -> 
A21: =IF(ROW()<=Worksheet!$B$4/2,ROW(),"") ->  | F21: =IF(ROW()<=Worksheet!$B$4/2,F20+1,"") -> 
A22: =IF(ROW()<=Worksheet!$B$4/2,ROW(),"") ->  | F22: =IF(ROW()<=Worksheet!$B$4/2,F21+1,"") -> 
A23: =IF(ROW()<=Worksheet!$B$4/2,ROW(),"") ->  | F23: =IF(ROW()<=Worksheet!$B$4/2,F22+1,"") -> 
A24: =IF(ROW()<=Worksheet!$B$4/2,ROW(),"") ->  | F24: =IF(ROW()<=Worksheet!$B$4/2,F23+1,"") -> 
A25: =IF(ROW()<=Worksheet!$B$4/2,ROW(),"") ->  | F25: =IF(ROW()<=Worksheet!$B$4/2,F24+1,"") -> 
A26: =IF(ROW()<=Worksheet!$B$4/2,ROW(),"") ->  | F26: =IF(ROW()<=Worksheet!$B$4/2,F25+1,"") -> 
A27: =IF(ROW()<=Worksheet!$B$4/2,ROW(),"") ->  | F27: =IF(ROW()<=Worksheet!$B$4/2,F26+1,"") -> 
A28: =IF(ROW()<=Worksheet!$B$4/2,ROW(),"") ->  | F28: =IF(ROW()<=Worksheet!$B$4/2,F27+1,"") -> 
A29: =IF(ROW()<=Worksheet!$B$4/2,ROW(),"") ->  | F29: =IF(ROW()<=Worksheet!$B$4/2,F28+1,"") -> 
A30: =IF(ROW()<=Worksheet!$B$4/2,ROW(),"") ->  | F30: =IF(ROW()<=Worksheet!$B$4/2,F29+1,"") -> 
